bitfinex/quotes_BTCUSD_20250526
["timestamp","ask_amount","ask_price","bid_price","bid_amount"]
[1748271084588,0.25467629,109520.0,109510.0,1.03274036]
[1748271084796,0.25467629,109520.0,109510.0,1.33514036]
[1748271084999,0.25467629,109520.0,109510.0,1.19823161]
[1748271085218,0.25467629,109520.0,109510.0,1.18910036]
[1748271085427,0.25467629,109520.0,109510.0,1.19823169]
[1748271086386,0.25667629,109520.0,109510.0,1.19923169]
[1748271086591,0.25667629,109520.0,109510.0,1.26953563]
[1748271086917,0.25667629,109520.0,109510.0,1.27866688]
[1748271087127,0.02226075,109520.0,109510.0,1.27866688]
[1748271087298,0.21400654,109520.0,109510.0,1.28779804]
[1748271087508,0.21400654,109520.0,109510.0,1.29692912]
[1748271087923,0.21400654,109520.0,109510.0,1.28626456]
[1748271088129,0.21400654,109520.0,109510.0,1.2771334]
[1748271088340,0.24120654,109520.0,109510.0,1.2771334]
[1748271088549,0.23207629,109520.0,109510.0,1.25776364]
[1748271088720,0.23207629,109520.0,109510.0,1.26689497]
[1748271089580,0.25767629,109520.0,109510.0,1.26689497]
[1748271089787,0.24854579,109520.0,109510.0,0.99835225]
[1748271090197,0.24854579,109520.0,109510.0,1.32702397]
[1748271090641,0.24854579,109520.0,109510.0,1.14439225]
[1748271091222,0.25354579,109520.0,109510.0,1.14439225]
[1748271092268,0.25354579,109520.0,109510.0,0.84199225]
[1748271092467,0.25354579,109520.0,109510.0,0.002]
[1748271092774,0.39958579,109520.0,109510.0,0.002]
[1748271094954,0.48913135,109520.0,109510.0,0.002]
[1748271095156,0.48913135,109520.0,109510.0,0.01052632]
[1748271098272,0.39958579,109520.0,109510.0,0.51051857]
[1748271099567,0.25354579,109520.0,109510.0,0.51051857]
[1748271099785,0.39958579,109520.0,109510.0,0.51051857]
[1748271101161,0.39958579,109520.0,109510.0,0.01052632]
[1748271101372,0.39958579,109520.0,109510.0,0.51051857]
[1748271102302,0.25354579,109520.0,109510.0,0.51051857]
[1748271102505,0.39958579,109520.0,109510.0,0.51051857]
[1748271103045,0.25354579,109520.0,109510.0,0.51051857]
[1748271103260,0.20074579,109520.0,109510.0,0.70228179]
[1748271103464,0.20074579,109520.0,109510.0,0.84832179]
[1748271103866,0.19161504,109520.0,109510.0,0.67111089]
[1748271104124,0.19161504,109520.0,109510.0,0.85374261]
[1748271104330,0.19161504,109520.0,109510.0,0.87081626]
[1748271104638,0.19161504,109520.0,109510.0,0.87994784]
[1748271105014,0.19161504,109520.0,109510.0,0.389087]
[1748271105219,0.19161504,109520.0,109510.0,0.87994784]
[1748271105466,0.19161504,109520.0,109510.0,1.29852569]
[1748271105856,0.19161504,109520.0,109510.0,1.28999937]
[1748271106248,0.19161504,109520.0,109510.0,1.29874184]
[1748271107451,0.19161504,109520.0,109510.0,1.28418952]
[1748271108263,0.20074562,109520.0,109510.0,1.3024521]
[1748271108497,0.009,109520.0,109510.0,1.52044268]
[1748271108714,0.009,109520.0,109510.0,3.84237949]
[1748271108899,0.009,109520.0,109510.0,3.85692034]
[1748271109680,0.009,109520.0,109510.0,3.35692809]
[1748271109827,0.007,109520.0,109510.0,1.77629709]
[1748271110273,0.008,109520.0,109510.0,1.44889709]
[1748271110484,0.008,109520.0,109510.0,1.67833474]
[1748271111076,0.006,109520.0,109510.0,1.67733474]
[1748271111450,0.007,109520.0,109510.0,1.67833474]
[1748271111666,0.00038445,109520.0,109510.0,1.67833474]
[1748271111872,0.00038445,109520.0,109510.0,1.76785625]
[1748271113270,0.00951445,109520.0,109510.0,1.71697625]
[1748271113479,0.00038445,109520.0,109510.0,1.71697625]
[1748271113680,0.00038445,109520.0,109510.0,1.76827625]
[1748271114104,0.01864486,109520.0,109510.0,1.59302425]
[1748271114309,0.00951453,109520.0,109510.0,1.72148525]
[1748271114488,0.00951453,109520.0,109510.0,1.74668525]
[1748271114707,0.00951453,109520.0,109510.0,1.69538525]
[1748271115097,0.00038445,109520.0,109510.0,1.74668525]
[1748271116018,0.00951453,109520.0,109510.0,1.74668525]
[1748271117632,0.00038445,109520.0,109510.0,1.74668525]
[1748271117935,0.00951445,109520.0,109510.0,1.74668525]
[1748271118161,0.00038445,109520.0,109510.0,1.74668525]
[1748271121590,0.00038445,109520.0,109510.0,1.50259117]
[1748271121829,0.00038445,109520.0,109510.0,1.68522289]
[1748271122594,0.00038445,109520.0,109510.0,1.69375222]
[1748271122833,0.00038445,109520.0,109510.0,1.70830944]
[1748271123052,0.07335591,109550.0,109540.0,0.20996795]
[1748271123266,0.07335591,109550.0,109540.0,2.62309007]
[1748271123267,0.0372275,109550.0,109540.0,2.62309007]
[1748271123470,0.02025525,109550.0,109540.0,2.58200908]
[1748271123671,0.0111275,109550.0,109540.0,3.01155464]
[1748271123880,0.02938299,109550.0,109540.0,3.01155464]
[1748271124050,0.03851107,109550.0,109540.0,3.01155464]
[1748271124269,0.02025516,109550.0,109540.0,3.08874936]
[1748271124478,0.0111275,109550.0,109540.0,3.14154936]
[1748271124677,0.0131275,109550.0,109540.0,3.14154936]
[1748271125036,0.004,109550.0,109540.0,3.14154936]
[1748271125292,0.004,109550.0,109540.0,3.15609021]
[1748271125444,0.008,109550.0,109540.0,3.15709021]
[1748271126000,0.008,109550.0,109540.0,3.16985568]
[1748271126001,0.004,109550.0,109540.0,3.16985568]
[1748271126337,0.006,109550.0,109540.0,3.17085568]
[1748271127494,0.04320195,109570.0,109560.0,0.54992961]
[1748271127738,0.03407612,109570.0,109560.0,1.86571318]
[1748271127946,0.00204,109570.0,109560.0,3.29552418]
[1748271128175,0.00204,109570.0,109560.0,3.32970225]
[1748271128772,0.01116583,109570.0,109560.0,3.32970225]
[1748271129330,0.01116583,109570.0,109560.0,3.33336472]
[1748271129741,0.01216583,109570.0,109560.0,3.33336472]
[1748271129943,0.00304,109570.0,109560.0,3.33336472]
[1748271130347,0.00404,109570.0,109560.0,3.33336472]
[1748271130473,0.01316583,109570.0,109560.0,3.3188075]
[1748271130709,0.03141782,109570.0,109560.0,2.6870855]
[1748271130900,0.03141774,109570.0,109560.0,2.6870855]
[1748271131345,0.03141774,109570.0,109560.0,2.69796736]
[1748271131974,0.03141774,109570.0,109560.0,2.70164272]
[1748271133421,0.03141774,109570.0,109560.0,2.41161672]
[1748271133586,0.03141774,109570.0,109560.0,2.43899872]
[1748271134189,0.0405439,109570.0,109560.0,2.30999061]
[1748271134358,0.03141774,109570.0,109560.0,2.16601961]
[1748271134566,0.2230767,109570.0,109560.0,2.15689278]
[1748271134794,0.05771824,109570.0,109560.0,2.14999161]
[1748271134996,0.06684465,109570.0,109560.0,2.14999161]
[1748271135404,0.06684457,109570.0,109560.0,2.14999161]
[1748271135882,0.07597098,109570.0,109560.0,2.14999161]
[1748271136117,0.25782445,109570.0,109560.0,0.49721914]
[1748271136322,0.25782445,109570.0,109560.0,1.27202939]
[1748271136455,0.25782445,109570.0,109560.0,0.96982939]
[1748271136662,0.25782445,109570.0,109560.0,1.27202939]
[1748271136859,0.25782445,109570.0,109560.0,1.12606939]
[1748271137067,0.25782445,109570.0,109560.0,1.27202939]
[1748271137495,0.25782445,109570.0,109560.0,1.28290498]
[1748271137700,0.25782445,109570.0,109560.0,0.89115942]
[1748271138118,0.25782445,109570.0,109560.0,1.19335942]
[1748271138550,0.25782445,109570.0,109560.0,1.1788022]
[1748271141049,0.08441924,109570.0,109560.0,2.06779137]
[1748271141263,0.01316608,109570.0,109560.0,2.2544352]
[1748271141443,0.05711882,109570.0,109560.0,2.2544352]
[1748271141645,0.06624532,109570.0,109560.0,2.2544352]
[1748271142219,0.02229191,109570.0,109560.0,2.2544352]
[1748271142624,0.01316583,109570.0,109560.0,2.25811683]
[1748271142828,0.02229191,109570.0,109560.0,2.25811683]
[1748271143233,0.02229183,109570.0,109560.0,2.25811683]
[1748271143634,0.02229174,109570.0,109560.0,2.25811683]
[1748271143838,0.03141782,109570.0,109560.0,2.25811683]
[1748271144072,0.03141774,109570.0,109560.0,2.25811683]
[1748271144471,0.04967031,109570.0,109560.0,2.25811683]
[1748271144671,0.02229174,109570.0,109560.0,2.27265768]
[1748271144879,0.03141782,109570.0,109560.0,2.27265768]
[1748271145851,0.04967039,109570.0,109560.0,2.27265768]
[1748271146221,0.04967031,109570.0,109560.0,2.27265768]
[1748271146612,0.04054398,109570.0,109560.0,2.27265768]
[1748271147970,0.04054398,109570.0,109560.0,2.25810046]
[1748271148301,0.00404,109570.0,109560.0,2.25810046]
[1748271148713,0.013166,109570.0,109560.0,2.28548246]
[1748271148912,0.02229208,109570.0,109560.0,2.28548246]
[1748271149117,0.00404,109570.0,109560.0,2.28548246]
[1748271149317,0.00404,109570.0,109560.0,2.33748246]
[1748271149565,0.00404,109570.0,109560.0,2.63388246]
[1748271150943,0.00404,109570.0,109560.0,2.60768246]
[1748271151319,0.00404,109570.0,109560.0,2.63428246]
[1748271152993,0.00404,109570.0,109560.0,2.58188246]
[1748271153455,0.00871884,109570.0,109560.0,2.61092794]
[1748271155108,0.27331856,109580.0,109570.0,0.5499107]
[1748271155412,0.27331856,109580.0,109570.0,1.19312323]
[1748271155846,0.27331856,109580.0,109570.0,1.21011529]
[1748271156016,0.27331856,109580.0,109570.0,1.21924145]
[1748271156223,0.27331856,109580.0,109570.0,1.22836753]
[1748271156561,0.27531856,109580.0,109570.0,1.22836753]
[1748271157122,0.27631856,109580.0,109570.0,1.22836753]
[1748271157347,0.27631856,109580.0,109570.0,1.00020442]
[1748271157556,0.25806773,109580.0,109570.0,0.35699189]
[1748271157762,0.25806773,109580.0,109570.0,0.01699189]
[1748271159321,0.25806773,109580.0,109570.0,0.03156539]
[1748271160093,0.25806773,109580.0,109570.0,0.04249462]
[1748271165098,0.25806773,109580.0,109570.0,0.54248687]
[1748271169370,0.25806773,109580.0,109570.0,0.5512272]
[1748271172170,0.25806773,109580.0,109570.0,0.5512272]
[1748271179095,0.25806773,109580.0,109570.0,0.35844335]
[1748271179815,0.25806773,109580.0,109570.0,0.17340342]
[1748271180027,0.25806773,109580.0,109570.0,0.50873258]
[1748271180559,0.25806773,109580.0,109570.0,0.49999225]
[1748271183966,0.23724691,109570.0,109560.0,0.49999225]
[1748271184167,0.23724691,109570.0,109560.0,0.64595225]
[1748271184364,0.23724691,109570.0,109560.0,0.49999225]
[1748271184587,0.23724691,109570.0,109560.0,0.64595225]
[1748271186250,0.23724691,109570.0,109560.0,0.49999225]
[1748271186460,0.2881778,109570.0,109560.0,0.49999225]
[1748271187719,0.24237578,109560.0,109550.0,1.32463555]
[1748271187911,0.25150303,109560.0,109550.0,1.32463555]
[1748271188319,0.25150303,109560.0,109550.0,0.83999225]
[1748271188497,0.25150303,109560.0,109550.0,0.49999225]
[1748271189046,0.25150303,109560.0,109550.0,0.004]
[1748271189251,0.25150303,109560.0,109550.0,0.50399225]
[1748271191036,0.25150303,109560.0,109550.0,0.52107101]
[1748271192682,0.20080303,109560.0,109550.0,0.52107101]
[1748271193091,0.22740303,109560.0,109550.0,0.52107101]
[1748271193798,0.31195402,109560.0,109550.0,0.52107101]
[1748271195628,0.25380303,109560.0,109550.0,0.52107101]
[1748271197275,0.25380303,109560.0,109550.0,0.70363604]
[1748271197397,0.009127,109560.0,109550.0,1.07102004]
[1748271197605,0.20991037,109570.0,109560.0,0.19167578]
[1748271197809,0.20078437,109570.0,109560.0,0.70079536]
[1748271198093,0.22738437,109570.0,109560.0,0.71787412]
[1748271198818,0.23553171,109570.0,109560.0,0.69961938]
[1748271199429,0.23553171,109570.0,109560.0,0.51707101]
[1748271199844,0.23553171,109570.0,109560.0,0.66307101]
[1748271200253,0.23553171,109570.0,109560.0,0.51707101]
[1748271200455,0.23553171,109570.0,109560.0,0.66307101]
[1748271201069,0.23553171,109570.0,109560.0,0.16307876]
[1748271201482,0.29193652,109570.0,109560.0,0.01707876]
[1748271202967,0.23553171,109570.0,109560.0,0.01707876]
[1748271203171,0.23553171,109570.0,109560.0,0.51707101]
[1748271203611,0.20913171,109570.0,109560.0,0.51707101]
[1748271203985,0.23633171,109570.0,109560.0,0.51707101]
[1748271205579,0.23633171,109570.0,109560.0,0.01707876]
[1748271206770,0.29281652,109570.0,109560.0,0.01707876]
[1748271207585,0.23633171,109570.0,109560.0,0.01707876]
[1748271208421,0.23633171,109570.0,109560.0,0.51707101]
[1748271209245,0.23633171,109570.0,109560.0,0.53164324]
[1748271212353,0.23633171,109570.0,109560.0,0.03165099]
[1748271212757,0.23633171,109570.0,109560.0,0.53164324]
[1748271212913,0.29281652,109570.0,109560.0,0.53164324]
[1748271213970,0.23633171,109570.0,109560.0,0.53164324]
[1748271214726,0.18253171,109570.0,109560.0,0.53164324]
[1748271214937,0.18253171,109570.0,109560.0,1.56331127]
[1748271215149,0.18253171,109570.0,109560.0,1.07244635]
[1748271215324,0.18253171,109570.0,109560.0,1.06331902]
[1748271215552,0.18253171,109570.0,109560.0,1.04874679]
[1748271215761,0.18253171,109570.0,109560.0,1.05749215]
[1748271216514,0.18253171,109570.0,109560.0,0.86581637]
[1748271216711,0.23443171,109570.0,109560.0,0.86581637]
[1748271218295,0.23443171,109570.0,109560.0,0.54039048]
[1748271220163,0.18253171,109570.0,109560.0,0.73206626]
[1748271221012,0.18253171,109570.0,109560.0,0.54951789]
[1748271221220,0.18253171,109570.0,109560.0,0.73206626]
[1748271221696,0.18253171,109570.0,109560.0,0.76582356]
[1748271221906,0.2081164,109580.0,109560.0,1.35262379]
[1748271222113,0.20991095,109570.0,109560.0,0.93305044]
[1748271222527,0.20991095,109570.0,109560.0,0.91847633]
[1748271222741,0.20078479,109570.0,109560.0,0.91847633]
[1748271223321,0.20078479,109570.0,109560.0,1.41846858]
[1748271224334,0.20078479,109570.0,109560.0,0.41848408]
[1748271224502,0.20078479,109570.0,109560.0,1.38471128]
[1748271224705,0.01825283,109570.0,109560.0,1.39383811]
[1748271224905,0.20078454,109570.0,109560.0,1.39383811]
[1748271225101,0.20991112,109570.0,109560.0,1.39383811]
[1748271225302,0.02737908,109570.0,109560.0,2.00119911]
[1748271225499,0.20991079,109570.0,109560.0,2.09072062]
[1748271225719,0.20991079,109570.0,109560.0,2.05268162]
[1748271226152,0.21903737,109570.0,109560.0,2.05268162]
[1748271226949,0.01825258,109570.0,109560.0,2.39268162]
[1748271227150,0.009126,109570.0,109560.0,2.30316011]
[1748271227359,0.01825075,109580.0,109570.0,0.24305812]
[1748271227570,0.01112417,109590.0,109580.0,0.60129128]
[1748271227776,0.002,109590.0,109580.0,3.67745934]
[1748271227987,4e-05,109600.0,109590.0,0.61581299]
[1748271228194,0.10440974,109630.0,109620.0,0.54069304]
[1748271228397,0.04388824,109630.0,109620.0,2.78029647]
[1748271228624,0.04388824,109630.0,109620.0,2.93832079]
[1748271228837,0.0443873,109630.0,109620.0,3.04238315]
[1748271229045,0.0443873,109630.0,109620.0,3.07849651]
[1748271229254,0.0443873,109630.0,109620.0,3.04951351]
[1748271229674,0.06462906,109630.0,109620.0,3.06285694]
[1748271229880,0.07375006,109630.0,109620.0,3.06285694]
[1748271230086,0.05350814,109630.0,109620.0,3.06285694]
[1748271230291,0.02868905,109630.0,109620.0,3.06285694]
[1748271230500,0.00049906,109630.0,109620.0,3.06285694]
[1748271230903,0.01874099,109630.0,109620.0,2.98572194]
[1748271231057,0.01874082,109630.0,109620.0,2.91298594]
[1748271231676,0.01874082,109630.0,109620.0,2.92743282]
[1748271232396,0.02786182,109630.0,109620.0,2.92743282]
[1748271232596,0.00049906,109630.0,109620.0,2.95633229]
[1748271233362,1e-08,109630.0,109620.0,2.95633229]
[1748271234071,1e-08,109630.0,109620.0,2.92973229]
[1748271234279,0.20979533,109630.0,109620.0,1.96911744]
[1748271234483,0.20067441,109630.0,109620.0,1.12894122]
[1748271234687,0.22677441,109630.0,109620.0,1.38900634]
[1748271235094,0.22677441,109630.0,109620.0,0.90805927]
[1748271235293,0.25287441,109630.0,109620.0,0.56805927]
[1748271235492,0.25287441,109630.0,109620.0,0.06806702]
[1748271235695,0.25287441,109630.0,109620.0,0.56805927]
[1748271236730,0.25287441,109630.0,109620.0,0.06806702]
[1748271238116,0.25287441,109630.0,109620.0,0.65758078]
[1748271238327,0.20067441,109630.0,109620.0,0.65758078]
[1748271239333,0.20067441,109630.0,109620.0,0.56805927]
[1748271239553,0.25137441,109630.0,109620.0,0.21398702]
[1748271240495,0.25137441,109630.0,109620.0,0.06806702]
[1748271240902,0.25137441,109630.0,109620.0,0.05472359]
[1748271240903,0.89728666,109630.0,109620.0,0.05472359]
[1748271241421,0.48683997,109630.0,109620.0,0.03764483]
[1748271241850,0.48683997,109630.0,109620.0,0.02889947]
[1748271242061,0.20071101,109610.0,109600.0,0.66861318]
[1748271242278,0.22641101,109610.0,109600.0,0.69749456]
[1748271242489,0.22641101,109610.0,109600.0,0.71440883]
[1748271242701,0.20071101,109610.0,109600.0,0.72306815]
[1748271243428,0.20071101,109610.0,109600.0,1.22211727]
[1748271243628,0.20071101,109610.0,109600.0,1.23284889]
[1748271244140,0.22771101,109610.0,109600.0,1.23284889]
[1748271244335,0.22771101,109610.0,109600.0,1.22211727]
[1748271245088,0.25431101,109610.0,109600.0,0.57714815]
[1748271245337,0.25431101,109610.0,109600.0,0.72302815]
[1748271245536,0.25431101,109610.0,109600.0,0.42126815]
[1748271245774,0.25431101,109610.0,109600.0,0.56714815]
[1748271246108,0.25431101,109610.0,109600.0,0.7496299]
[1748271246310,0.20071101,109610.0,109600.0,0.98051143]
[1748271246650,0.19158818,109610.0,109600.0,0.98051143]
[1748271246854,0.55708575,109620.0,109610.0,0.20983427]
[1748271247066,0.54070784,109620.0,109610.0,0.69976047]
[1748271247211,0.54070784,109620.0,109610.0,0.69976055]
[1748271247432,0.53158575,109620.0,109610.0,0.76233578]
[1748271247889,0.53158575,109620.0,109610.0,0.77145878]
[1748271248026,0.53158575,109620.0,109610.0,0.76233578]
[1748271248619,0.53358575,109620.0,109610.0,0.26328675]
[1748271248822,0.53358575,109620.0,109610.0,0.27240983]
[1748271248998,0.53558575,109620.0,109610.0,0.24504033]
[1748271249171,0.21326342,109620.0,109610.0,0.25416358]
[1748271249379,0.21326342,109620.0,109610.0,0.21716194]
[1748271249982,0.19558575,109620.0,109610.0,0.22628494]
[1748271251164,0.01312209,109620.0,109610.0,0.74357965]
[1748271251370,0.02224401,109620.0,109610.0,0.74357965]
[1748271251576,0.04048818,109620.0,109610.0,0.74357965]
[1748271251792,0.04048818,109620.0,109610.0,0.85930116]
[1748271251996,0.004,109620.0,109610.0,2.55539672]
[1748271252201,0.02024359,109620.0,109610.0,2.43627572]
[1748271252412,0.02024359,109620.0,109610.0,2.32529472]
[1748271252614,0.03848784,109620.0,109610.0,1.47063105]
[1748271252822,0.20269312,109620.0,109610.0,1.23527813]
[1748271253235,0.20069312,109620.0,109610.0,1.24440121]
[1748271253440,0.19157087,109620.0,109610.0,1.23527805]
[1748271253677,0.19157087,109620.0,109610.0,1.24440105]
[1748271253887,0.19157087,109620.0,109610.0,1.22615488]
[1748271254061,0.19157087,109620.0,109610.0,1.23527796]
[1748271254292,0.19157087,109620.0,109610.0,1.24060176]
[1748271254430,0.19157087,109620.0,109610.0,1.25884801]
[1748271254607,0.21817087,109620.0,109610.0,1.25884801]
[1748271255172,0.21817087,109620.0,109610.0,1.26797101]
[1748271255390,0.20904845,109620.0,109610.0,0.9685911]
[1748271255599,0.23484845,109620.0,109610.0,0.04002047]
[1748271255800,0.23484845,109620.0,109610.0,0.34178047]
[1748271256150,0.23484845,109620.0,109610.0,0.32733359]
[1748271257688,0.23484845,109620.0,109610.0,0.18145359]
[1748271257893,0.23484845,109620.0,109610.0,0.19590047]
[1748271258551,0.23484845,109620.0,109610.0,0.2746124]
[1748271258816,0.23484845,109620.0,109610.0,0.69494959]
[1748271259235,0.23484845,109620.0,109610.0,0.19590047]
[1748271261027,0.23484845,109620.0,109610.0,0.19290047]
[1748271261226,0.23484845,109620.0,109610.0,0.37536557]
[1748271261495,0.2439707,109620.0,109610.0,0.87441469]
[1748271261682,0.2439707,109620.0,109610.0,0.97305945]
[1748271261984,0.2439707,109620.0,109610.0,0.9820509]
[1748271262177,0.2439707,109620.0,109610.0,0.96380448]
[1748271262415,0.2439707,109620.0,109610.0,0.9493576]
[1748271263506,0.2181707,109620.0,109610.0,0.7934776]
[1748271263893,0.2433707,109620.0,109610.0,0.7934776]
[1748271264100,0.2433707,109620.0,109610.0,0.70395609]
[1748271265591,0.1915707,109620.0,109610.0,0.71307934]
[1748271265863,0.01824375,109620.0,109610.0,1.3009061]
[1748271266040,0.02736592,109620.0,109610.0,1.29178343]
[1748271266239,0.02736592,109620.0,109610.0,1.31002901]
[1748271266463,0.02736592,109620.0,109610.0,1.39042777]
[1748271266679,0.06974226,109630.0,109620.0,0.19157078]
[1748271266835,0.06974226,109630.0,109620.0,0.70873244]
[1748271267057,0.07886376,109630.0,109620.0,0.85465244]
[1748271267271,0.0542636,109630.0,109620.0,0.84553035]
[1748271267501,0.0633851,109630.0,109620.0,0.87156671]
[1748271267825,0.0633851,109630.0,109620.0,0.86244462]
[1748271268105,0.0653851,109630.0,109620.0,0.86244462]
[1748271268267,0.24781691,109630.0,109620.0,0.86244462]
[1748271268475,0.24781691,109630.0,109620.0,0.85332245]
[1748271268881,0.24981691,109630.0,109620.0,0.85332245]
[1748271269368,0.26509591,109630.0,109620.0,0.71005275]
[1748271270038,0.07354226,109630.0,109620.0,0.72829717]
[1748271270237,0.09178519,109630.0,109620.0,0.72829725]
[1748271270444,0.09178519,109630.0,109620.0,0.72677653]
[1748271271028,0.09178519,109630.0,109620.0,0.5458488]
[1748271271274,0.249817,109630.0,109620.0,0.72829725]
[1748271271415,0.0673851,109630.0,109620.0,0.72829733]
[1748271271619,0.24981691,109630.0,109620.0,0.71005275]
[1748271271821,0.0582641,109630.0,109620.0,0.74283793]
[1748271272063,0.24069591,109630.0,109620.0,0.75196018]
[1748271272427,0.2498175,109630.0,109620.0,0.75196018]
[1748271273412,0.2249175,109630.0,109620.0,0.76068437]
[1748271273562,0.0333641,109630.0,109620.0,0.76980646]
[1748271273767,0.02424226,109630.0,109620.0,0.76980637]
[1748271273965,0.03336368,109630.0,109620.0,0.76980646]
[1748271274200,0.04248527,109630.0,109620.0,0.7515622]
[1748271274399,0.25021708,109630.0,109620.0,0.75156228]
[1748271274832,0.25021708,109630.0,109620.0,0.76068453]
[1748271276306,0.25021708,109630.0,109620.0,0.75156228]
[1748271276514,0.27381708,109630.0,109620.0,0.76068453]
[1748271277109,0.27381708,109630.0,109620.0,0.74243995]
[1748271277275,0.27381708,109630.0,109620.0,0.89744228]
[1748271277512,0.09138527,109630.0,109620.0,0.89744228]
[1748271277725,0.27381708,109630.0,109620.0,0.88831995]
[1748271277859,0.27381708,109630.0,109620.0,0.89744228]
[1748271278798,0.27381708,109630.0,109620.0,0.88831995]
[1748271279887,0.02424226,109630.0,109620.0,1.24656379]
[1748271280088,0.02424194,109630.0,109620.0,1.83502675]
[1748271280259,0.02424194,109630.0,109620.0,2.44458275]
[1748271280426,0.01512085,109630.0,109620.0,2.44458275]
[1748271280627,0.00600001,109630.0,109620.0,2.5084236]
[1748271281271,0.00600001,109630.0,109620.0,2.49388301]
[1748271281524,0.00912067,109640.0,109630.0,1.0395918]
[1748271281639,0.02751103,109640.0,109630.0,2.5226364]
[1748271281967,0.02751103,109640.0,109630.0,2.53042958]
[1748271282172,0.01839036,109640.0,109630.0,2.54867167]
[1748271282395,0.01839036,109640.0,109630.0,2.53955067]
[1748271282586,0.02751103,109640.0,109630.0,2.54867167]
[1748271282795,0.02751103,109640.0,109630.0,2.53042958]
[1748271283019,0.03863178,109640.0,109630.0,2.53915377]
[1748271283751,0.03963178,109640.0,109630.0,2.53915377]
[1748271284096,0.03051103,109640.0,109630.0,2.54827486]
[1748271284391,0.02139036,109640.0,109630.0,2.55739586]
[1748271284696,0.03963096,109640.0,109630.0,2.54827486]
[1748271284870,0.03963096,109640.0,109630.0,2.55739586]
[1748271285077,0.03963096,109640.0,109630.0,2.54827486]
[1748271285283,0.03963088,109640.0,109630.0,2.54827486]
[1748271285666,0.03963088,109640.0,109630.0,2.55739586]
[1748271286290,0.00314961,109640.0,109630.0,2.71098227]
[1748271287142,0.00314961,109640.0,109630.0,2.64105327]
[1748271289104,0.02138987,109640.0,109630.0,1.94502726]
[1748271289889,0.0122697,109640.0,109630.0,1.94502726]
[1748271290110,0.01226962,109640.0,109630.0,1.94502726]
[1748271290399,0.02138979,109640.0,109630.0,1.94502726]
[1748271290616,0.01226962,109640.0,109630.0,1.94502726]
[1748271290818,0.00314961,109640.0,109630.0,1.94502726]
[1748271290986,0.01226962,109640.0,109630.0,1.99392726]
[1748271291333,0.00314961,109640.0,109630.0,1.99392726]
[1748271291514,0.01226962,109640.0,109630.0,1.99392726]
[1748271291813,0.00314961,109640.0,109630.0,2.29032726]
[1748271292931,0.00114961,109640.0,109630.0,2.29032726]
[1748271293334,0.0202786,109650.0,109640.0,0.20977643]
[1748271293536,0.0202786,109650.0,109640.0,3.6641299]
[1748271293713,0.00204,109650.0,109640.0,4.33632157]
[1748271293920,0.00204,109650.0,109640.0,4.38372157]
[1748271294420,0.00204,109650.0,109640.0,4.39244576]
[1748271294592,0.00204,109650.0,109640.0,4.39344576]
[1748271294779,0.00204,109650.0,109640.0,3.92804876]
[1748271295214,0.01115926,109650.0,109640.0,3.92804876]
[1748271295413,0.00204,109650.0,109640.0,3.92804876]
[1748271296836,0.07695661,109660.0,109650.0,0.54975755]
[1748271297042,0.07695661,109660.0,109650.0,2.14222086]
[1748271297468,0.07695661,109660.0,109650.0,2.15913513]
[1748271297675,0.07695661,109660.0,109650.0,2.15913522]
[1748271297877,0.05175661,109660.0,109650.0,2.15913522]
[1748271298077,0.07585661,109660.0,109650.0,2.1140383]
[1748271298307,0.0849757,109660.0,109650.0,2.131882]
[1748271298447,0.0849757,109660.0,109650.0,2.098127]
[1748271298647,0.0667376,109660.0,109650.0,2.10724584]
[1748271298848,0.07585661,109660.0,109650.0,2.08900708]
[1748271299409,0.25823851,109660.0,109650.0,1.2664005]
[1748271299611,0.07585661,109660.0,109650.0,1.799007]
[1748271299825,0.25823851,109660.0,109650.0,1.2818505]
[1748271300024,0.2683576,109660.0,109650.0,1.29097009]
[1748271300607,0.2683576,109660.0,109650.0,1.77972149]
[1748271300806,0.25923884,109660.0,109650.0,1.13647591]
[1748271301014,0.25923884,109660.0,109650.0,1.30055559]
[1748271301215,0.25923884,109660.0,109650.0,1.30967543]
[1748271301419,0.25923884,109660.0,109650.0,1.30055567]
[1748271301784,0.25923884,109660.0,109650.0,1.30967543]
[1748271301983,0.25012,109660.0,109650.0,0.36563846]
[1748271302185,0.25012,109660.0,109650.0,0.02563846]
[1748271302680,0.05861876,109660.0,109650.0,1.06146971]
[1748271302926,0.06773727,109660.0,109650.0,1.8302382]
[1748271303131,0.07685619,109660.0,109650.0,1.83835754]
[1748271303282,0.06773727,109660.0,109650.0,1.53651905]
[1748271303481,0.07685611,109660.0,109650.0,1.53651905]
[1748271303687,0.08597512,109660.0,109650.0,1.52739971]
[1748271304057,0.2683576,109660.0,109650.0,1.39958057]
[1748271304849,0.25923884,109660.0,109650.0,1.39958057]
[1748271304996,0.25923884,109660.0,109650.0,1.39046098]
[1748271305904,0.25012,109660.0,109650.0,1.24326115]
[1748271306110,0.25012,109660.0,109650.0,1.25238082]
[1748271307112,0.25012,109660.0,109650.0,1.26150033]
[1748271307640,0.25012,109660.0,109650.0,1.25238082]
[1748271308088,0.25012,109660.0,109650.0,1.26150041]
[1748271308822,0.0495,109660.0,109650.0,1.76953732]
[1748271309032,0.01923727,109660.0,109650.0,1.78407759]
[1748271309311,0.01923727,109660.0,109650.0,1.98884479]
[1748271309472,0.05245611,109660.0,109650.0,2.20337159]
[1748271310918,0.22571917,109660.0,109650.0,2.19425225]
[1748271311219,0.08667503,109660.0,109650.0,2.08637859]
[1748271311491,0.26905693,109660.0,109650.0,1.98985574]
[1748271311708,0.27817602,109660.0,109650.0,1.90234725]
[1748271311910,0.08667503,109660.0,109650.0,1.91146659]
[1748271312118,0.07755611,109660.0,109650.0,1.91146659]
[1748271312732,0.01823727,109660.0,109650.0,1.91146659]
[1748271312953,0.02735619,109660.0,109650.0,1.91146659]
[1748271313601,0.20973801,109660.0,109650.0,1.66892933]
[1748271313804,0.22411966,109660.0,109650.0,0.67935586]
[1748271313940,0.22411966,109660.0,109650.0,0.82519586]
[1748271315500,0.22411966,109660.0,109650.0,0.7059544]
[1748271315719,0.24941966,109660.0,109650.0,0.75891737]
[1748271317331,0.24941966,109660.0,109650.0,0.61307737]
[1748271317552,0.24941966,109660.0,109650.0,0.75891737]
[1748271318545,0.24941966,109660.0,109650.0,0.61307737]
[1748271318684,0.24941966,109660.0,109650.0,0.75891737]
[1748271319551,0.24941966,109660.0,109650.0,0.94131591]
[1748271319705,0.24941966,109660.0,109650.0,1.44935323]
[1748271319923,0.24030082,109660.0,109650.0,1.44935323]
[1748271320124,0.24030082,109660.0,109650.0,0.95043583]
[1748271320361,0.24030082,109660.0,109650.0,0.94131591]
[1748271320970,0.0253,109660.0,109650.0,3.86092271]
[1748271321200,0.2417832,109670.0,109660.0,0.20973859]
[1748271321399,0.26913723,109670.0,109660.0,0.81409177]
[1748271321700,0.26001955,109670.0,109660.0,0.80497309]
[1748271321872,0.26001955,109670.0,109660.0,0.81409193]
[1748271322075,0.26001955,109670.0,109660.0,0.80497309]
[1748271322421,0.26001955,109670.0,109660.0,0.81409193]
[1748271322821,0.002,109670.0,109660.0,1.26187476]
[1748271322955,0.01211751,109670.0,109660.0,1.27059895]